[Event "IIFL Wealth  4th Mumbai Junior U-13"]
[Site "Mumbai"]
[Date "2019.01.06"]
[Round "8"]
[White "Mahajan Ayush"]
[Black "Nanal Arnav"]
[Result "0-1"]
[ECO "B10"]
[WhiteElo "1629"]
[BlackElo "1456"]
[Annotator "NA"]
[PlyCount "153"]
[EventDate "2018.12.30"]
[EventType "swiss"]
[EventCountry "IND"]
[SourceTitle "playchess.com"]
[Source "ChessBase"]
[SourceQuality "1"]
[TimeControl "40/5400+30:1800+30"]

1. e4 {[%emt 0:00:00]} c6 {[%emt 0:04:45]} 2. Nf3 {[%emt 0:00:54]} d5 {[%emt 0:00:10]} 3. Nc3 {[%emt 0:01:00]} Nf6 {[%emt 0:00:07]} 4. e5 {[%emt 0:00:36]} Ne4 {[%emt 0:00:07]} 5. d4 {[%emt 0:00:34]} Nxc3 {[%emt 0:00:38]} 6. bxc3 {[%emt 0:00:23]} Bf5 {[%emt 0:00:29]} 7. Bd3 {[%emt 0:04:58]} Bxd3 {[%emt 0:01:39]} 8. Qxd3 {[%emt 0:00:34]} e6 {[%emt 0:00:53]} 9. O-O {[%emt 0:00:28]} Be7 {[%emt 0:00:41]} 10. Rb1 {[%emt 0:00:38]} b6 {[%emt 0:03:25]} 11. Re1 {[%emt 0:01:50]} O-O {[%emt 0:00:54]} 12. Re3 {[%emt 0:05:08]} Nd7 {[%emt 0:02:18]} 13. h4 {[%emt 0:00:58]} Bxh4 {[%emt 0:10:01]} 14. Nxh4 {[%emt 0:21:01]} Qxh4 {[%emt 0:00:01]} 15. Ba3 {[%emt 0:00:17]} Rfe8 {[%emt 0:04:08]} 16. Rbe1 {[%emt 0:01:33]} Qh5 {[%emt 0:05:32]} 17. Rh3 {[%emt 0:09:29]} Qf5 {[%emt 0:04:17]} 18. Qd2 {[%emt 0:00:50]} f6 {[%emt 0:06:57]} 19. Bd6 {[%emt 0:09:07]} fxe5 {[%emt 0:04:58]} 20. Rf3 {[%emt 0:10:59]} Qh5 {[%emt 0:04:43]} 21. dxe5 {[%emt 0:22:04]} Nc5 {[%emt 0:02:12]} 22. Qf4 {[%emt 0:00:22]} Ne4 {[%emt 0:01:26]} 23. Rxe4 {[%emt 0:00:16]} dxe4 {[%emt 0:00:29]} 24. Qxe4 {[%emt 0:00:02]} Qg6 {[%emt 0:03:53]} 25. Qxg6 {[%emt 0:03:50]} hxg6 {[%emt 0:00:07]} 26. Kh2 {[%emt 0:00:09]} Rad8 {[%emt 0:01:11]} 27. Kg3 {[%emt 0:00:29]} Rd7 {[%emt 0:00:14]} 28. Rf4 {[%emt 0:00:51]} Rf7 {[%emt 0:00:59]} 29. Rg4 {[%emt 0:00:07]} Rf5 {[%emt 0:08:14]} 30. Ra4 {[%emt 0:00:35]} Ra8 {[%emt 0:02:56]} 31. f3 {[%emt 0:00:39]} Rh5 {[%emt 0:04:26]} 32. c4 {[%emt 0:03:36]} a6 {[%emt 0:01:12]} 33. Ra3 {[%emt 0:00:11]} Rh1 {[%emt 0:00:42]} 34. Rb3 {[%emt 0:00:22]} b5 {[%emt 0:00:16]} 35. Rc3 {[%emt 0:00:16]} Rc1 {[%emt 0:01:00]} 36. a3 {[%emt 0:00:24]} Rc8 {[%emt 0:00:43]} 37. f4 {[%emt 0:01:40]} c5 {[%emt 0:02:20]} 38. cxb5 {[%emt 0:01:00]} axb5 {[%emt 0:00:03]} 39. Rxc5 {[%emt 0:00:12]} Rxc5 {[%emt 0:00:05]} 40. Bxc5 {[%emt 0:00:00]} Rxc2 {[%emt 0:00:00]} 41. Bd6 {[%emt 0:00:05]} Kf7 {[%emt 0:00:45]} 42. Kf3 {[%emt 0:01:20]} g5 {[%emt 0:00:45]} 43. g3 {[%emt 0:02:34]} gxf4 {[%emt 0:00:38]} 44. Kxf4 {[%emt 0:00:15]} Kg6 {[%emt 0:00:21]} 45. g4 {[%emt 0:00:07]} Rc3 {[%emt 0:01:44]} 46. Be7 {[%emt 0:02:12]} Rc7 {[%emt 0:00:14]} 47. Bd6 {[%emt 0:00:24]} Rf7+ {[%emt 0:00:03]} 48. Kg3 {[%emt 0:00:09]} Kg5 {[%emt 0:00:05]} 49. Bb4 {[%emt 0:00:46]} Rc7 {[%emt 0:00:30]} 50. Bd2+ {[%emt 0:00:49]} Kg6 {[%emt 0:00:02]} 51. Bb4 {[%emt 0:00:09]} Rc4 {[%emt 0:01:15]} 52. Bd6 {[%emt 0:00:11]} Kf7 {[%emt 0:02:33]} 53. Kh4 {[%emt 0:01:16]} g6 {[%emt 0:02:36]} 54. Kg5 {[%emt 0:03:56]} Re4 {[%emt 0:00:20]} 55. Bb8 {[%emt 0:05:28]} Rd4 {[%emt 0:00:12]} 56. Ba7 {[%emt 0:03:04]} Rd3 {[%emt 0:01:03]} 57. Bc5 {[%emt 0:00:21]} Rd5 {[%emt 0:00:03]} 58. Bd6 {[%emt 0:02:20]} Rxd6 {[%emt 0:02:00]} 59. exd6 {[%emt 0:00:06]} e5 {[%emt 0:00:02]} 60. d7 {[%emt 0:00:07]} Ke7 {[%emt 0:00:03]} 61. Kxg6 {[%emt 0:00:04]} e4 {[%emt 0:00:52]} 62. Kh7 {[%emt 0:02:01]} e3 {[%emt 0:00:06]} 63. g5 {[%emt 0:00:02]} e2 {[%emt 0:00:03]} 64. g6 {[%emt 0:00:03]} e1=Q {[%emt 0:00:05]} 65. g7 {[%emt 0:00:17]} Qh4+ {[%emt 0:00:08]} 66. Kg6 {[%emt 0:00:04]} Qf6+ {[%emt 0:00:12]} 67. Kh7 {[%emt 0:00:03]} Qf7 {[%emt 0:00:04]} 68. Kh8 {[%emt 0:00:37]} Qh5+ {[%emt 0:00:07]} 69. Kg8 {[%emt 0:00:03]} Qh6 {[%emt 0:00:17]} 70. d8=Q+ Kxd8 {[%emt 0:00:08]} 71. Kf7 {[%emt 0:00:53]} Qh7 {[%emt 0:00:03]} 72. Kf8 {[%emt 0:00:11]} Qf5+ {[%emt 0:00:09]} 73. Kg8 {[%emt 0:00:04]} Ke7 {[%emt 0:00:09]} 74. Kh8 {[%emt 0:00:12]} Qh5+ {[%emt 0:00:13]} 75. Kg8 {[%emt 0:00:11]} Qg6 {[%emt 0:00:06]} 76. a4 {[%emt 0:00:05]} bxa4 {[%emt 0:00:04]} 77. Kh8 {[%emt 0:00:06]} 0-1

[Event "IIFL Wealth  4th Mumbai Junior U-13"]
[Site "Mumbai"]
[Date "2019.01.06"]
[Round "8"]
[White "Tejes Suresh Kumar"]
[Black "Sairaj Dilip Vernekar"]
[Result "1/2-1/2"]
[ECO "B40"]
[WhiteElo "1618"]
[BlackElo "1445"]
[Annotator "NA RC"]
[PlyCount "80"]
[EventDate "2018.12.30"]
[EventType "swiss"]
[EventCountry "IND"]
[SourceTitle "playchess.com"]
[Source "ChessBase"]
[SourceQuality "1"]
[TimeControl "40/5400+30:1800+30"]

1. e4 {[%emt 0:00:00]} c5 {[%emt 0:00:00]} 2. Nf3 {[%emt 0:00:00]} e6 {[%emt 0:00:00]} 3. c3 {[%emt 0:00:00]} Nc6 {[%emt 0:01:04]} 4. d4 {[%emt 0:00:13]} cxd4 {[%emt 0:01:26]} 5. cxd4 {[%emt 0:00:08]} d5 {[%emt 0:00:23]} 6. e5 {[%emt 0:00:18]} Nge7 {[%emt 0:01:44]} 7. Nc3 {[%emt 0:00:31]} Ng6 {[%emt 0:01:38]} 8. h4 {[%emt 0:00:59]} h5 {[%emt 0:10:16]} 9. Bd3 {[%emt 0:01:09]} Nge7 {[%emt 0:04:43]} 10. a3 {[%emt 0:02:28]} Nf5 {[%emt 0:02:25]} 11. Bxf5 {[%emt 0:02:47]} exf5 {[%emt 0:01:26]} 12. Qb3 {[%emt 0:00:18]} Ne7 {[%emt 0:09:21]} 13. Nb5 {[%emt 0:04:28]} Ng6 {[%emt 0:04:21]} 14. Qxd5 {[%emt 0:11:16]} Qxd5 {[%emt 0:13:25]} 15. Nc7+ {[%emt 0:00:06]} Kd8 {[%emt 0:00:15]} 16. Nxd5 {[%emt 0:00:06]} Be6 {[%emt 0:00:04]} 17. Bg5+ {[%emt 0:02:40]} Be7 {[%emt 0:04:30]} 18. Nxe7 {[%emt 0:16:53]} Nxe7 {[%emt 0:02:07]} 19. Rd1 {[%emt 0:00:24]} Bd5 {[%emt 0:04:50]} 20. O-O {[%emt 0:00:53]} Rc8 {[%emt 0:01:40]} 21. Nd2 {[%emt 0:05:11]} Rg8 {[%emt 0:01:48]} 22. g3 {[%emt 0:08:03]} Rc2 {[%emt 0:02:37]} 23. Rfe1 {[%emt 0:10:34]} Rxb2 {[%emt 0:02:41]} 24. Nb1 {[%emt 0:01:40]} Rb3 {[%emt 0:05:00]} 25. Rc1 {[%emt 0:04:57]} Re8 {[%emt 0:01:10]} 26. Nc3 {[%emt 0:00:26]} Be4 {[%emt 0:06:08]} 27. d5 {[%emt 0:02:36]} Kd7 {[%emt 0:00:40]} 28. Nxe4 {[%emt 0:11:19]} fxe4 {[%emt 0:00:06]} 29. Bxe7 {[%emt 0:00:30]} Rxe7 {[%emt 0:00:23]} 30. Rxe4 {[%emt 0:00:11]} Rxa3 {[%emt 0:01:29]} 31. d6 {[%emt 0:00:20]} Re8 {[%emt 0:00:13]} 32. Rc7+ {[%emt 0:00:13]} Ke6 {[%emt 0:00:11]} 33. Rxb7 {[%emt 0:00:43]} Ra5 {[%emt 0:01:26]} 34. f4 {[%emt 0:00:17]} Ra2 {[%emt 0:01:34]} 35. Re3 {[%emt 0:01:54]} Rc8 {[%emt 0:01:30]} 36. Re7+ {[%emt 0:00:24]} Kd5 {[%emt 0:00:22]} 37. Kf1 {[%emt 0:05:58]} Rc1+ {[%emt 0:00:31]} 38. Re1 {[%emt 0:00:11]} Rcc2 {[%emt 0:00:12]} 39. d7 {[%emt 0:02:15]} Rf2+ {[%emt 0:00:05]} 40. Kg1 {[%emt 0:00:00]} Rg2+ 1/2-1/2

[Event "IIFL Wealth  4th Mumbai Junior U-13"]
[Site "Mumbai"]
[Date "2019.01.06"]
[Round "8"]
[White "Akshit Jha"]
[Black "Aggarwal Vansh"]
[Result "1-0"]
[ECO "C55"]
[WhiteElo "1604"]
[BlackElo "1328"]
[Annotator "NA RC"]
[PlyCount "113"]
[EventDate "2018.12.30"]
[EventType "swiss"]
[EventCountry "IND"]
[SourceTitle "playchess.com"]
[Source "ChessBase"]
[SourceQuality "1"]
[TimeControl "40/5400+30:1800+30"]

1. e4 e5 2. Nf3 Nc6 3. Bc4 Nf6 4. d3 Be7 5. Nbd2 d6 6. Nf1 a6 7. Ng3 Na5 8. Bb3 Nxb3 9. axb3 h6 10. O-O O-O 11. d4 exd4 12. Nxd4 Re8 13. Re1 Bf8 14. f3 Be6 15. Be3 Bd7 16. Bf2 c6 17. Qd2 Qc7 18. Ndf5 Bxf5 19. Nxf5 d5 20. Bd4 Re6 21. e5 Nd7 22. f4 Rae8 23. Bf2 f6 24. Nd4 R6e7 25. e6 Nc5 26. f5 Ne4 27. Qe2 Rd8 28. Qf3 Ree8 29. Be3 Bd6 30. g3 Be5 31. c3 Kh8 32. Ne2 Re7 33. b4 Bd6 34. Nf4 Bxf4 35. Bxf4 Qb6+ 36. Kg2 Nd6 37. Be3 Qc7 38. Bc5 Ree8 39. Qf4 Nb5 40. Qh4 Nd6 41. Rf1 Ne4 42. Bd4 Re7 43. Qh5 Qc8 44. h4 Rf8 45. Qe2 Qc7 46. Qe3 Kg8 47. Rf4 Rfe8 48. Rg4 Kh8 49. Rg6 Rb8 50. Ba7 Rc8 51. Bb6 Qd6 52. Bd4 Qc7 53. g4 Rf8 54. Rh1 Kh7 55. g5 fxg5 56. hxg5 Rxf5 57. Rgxh6+ 1-0

[Event "IIFL Wealth  4th Mumbai Junior U-13"]
[Site "Mumbai"]
[Date "2019.01.06"]
[Round "8"]
[White "Pingale Shivraj"]
[Black "Ghadge Harsh"]
[Result "1-0"]
[ECO "C26"]
[WhiteElo "1580"]
[BlackElo "1265"]
[Annotator "NA"]
[PlyCount "113"]
[EventDate "2018.12.30"]
[EventType "swiss"]
[EventCountry "IND"]
[SourceTitle "playchess.com"]
[Source "ChessBase"]
[SourceQuality "1"]
[TimeControl "40/5400+30:1800+30"]

1. e4 {[%emt 0:00:00]} e5 {[%emt 0:00:00]} 2. Nc3 {[%emt 0:00:00]} Nf6 {[%emt 0:00:27]} 3. f4 {[%emt 0:00:00]} d6 {[%emt 0:00:20]} 4. Nf3 {[%emt 0:00:00]} Nc6 {[%emt 0:00:18]} 5. Bb5 {[%emt 0:00:38]} Bg4 {[%emt 0:00:41]} 6. h3 {[%emt 0:00:07]} Bxf3 {[%emt 0:00:05]} 7. Qxf3 {[%emt 0:00:05]} Be7 {[%emt 0:00:24]} 8. O-O {[%emt 0:01:04]} O-O {[%emt 0:01:47]} 9. Bxc6 {[%emt 0:05:20]} bxc6 {[%emt 0:00:38]} 10. d3 {[%emt 0:00:04]} Rb8 {[%emt 0:12:57]} 11. b3 {[%emt 0:02:13]} exf4 {[%emt 0:05:24]} 12. Bxf4 {[%emt 0:02:24]} Nd7 {[%emt 0:01:49]} 13. Ne2 {[%emt 0:07:18]} Bf6 {[%emt 0:01:21]} 14. Rad1 {[%emt 0:01:53]} Qe7 {[%emt 0:08:09]} 15. Ng3 {[%emt 0:09:48]} g6 {[%emt 0:00:54]} 16. d4 {[%emt 0:07:03]} Bg7 {[%emt 0:01:34]} 17. c3 {[%emt 0:01:07]} f6 {[%emt 0:03:51]} 18. h4 {[%emt 0:04:14]} c5 {[%emt 0:05:32]} 19. h5 {[%emt 0:01:38]} Rfe8 {[%emt 0:09:43]} 20. hxg6 {[%emt 0:04:46]} hxg6 {[%emt 0:02:29]} 21. Qg4 {[%emt 0:00:12]} cxd4 {[%emt 0:02:26]} 22. Qxg6 {[%emt 0:01:20]} Nf8 {[%emt 0:02:21]} 23. Qg4 {[%emt 0:00:56]} dxc3 {[%emt 0:03:19]} 24. Nf5 {[%emt 0:00:13]} Qd7 {[%emt 0:01:32]} 25. Bh6 {[%emt 0:01:04]} Re7 {[%emt 0:00:53]} 26. Bxg7 {[%emt 0:02:19]} Rxg7 {[%emt 0:00:14]} 27. Qxg7+ {[%emt 0:00:05]} Qxg7 {[%emt 0:00:04]} 28. Nxg7 {[%emt 0:00:07]} Kxg7 {[%emt 0:00:03]} 29. Rc1 {[%emt 0:00:13]} Ne6 {[%emt 0:00:14]} 30. Rxc3 {[%emt 0:00:18]} Rb4 {[%emt 0:00:06]} 31. Rc4 {[%emt 0:01:05]} Rb5 {[%emt 0:00:17]} 32. Rf5 {[%emt 0:00:54]} Rb8 {[%emt 0:00:21]} 33. Kf2 {[%emt 0:00:58]} Re8 {[%emt 0:00:12]} 34. Ra5 {[%emt 0:01:17]} Nc5 {[%emt 0:00:28]} 35. Rxa7 {[%emt 0:00:53]} Kg6 {[%emt 0:00:26]} 36. Kf3 {[%emt 0:01:10]} Ne6 {[%emt 0:00:06]} 37. b4 {[%emt 0:00:32]} Ng5+ {[%emt 0:00:21]} 38. Kg4 {[%emt 0:01:21]} Nxe4 {[%emt 0:00:19]} 39. Rcxc7 {[%emt 0:00:22]} Nf2+ {[%emt 0:00:14]} 40. Kf3 {[%emt 0:00:00]} Nd3 {[%emt 0:00:00]} 41. g4 {[%emt 0:02:52]} Rh8 {[%emt 0:01:11]} 42. Rg7+ {[%emt 0:00:21]} Kh6 {[%emt 0:00:09]} 43. Ke4 {[%emt 0:00:41]} Ne5 {[%emt 0:00:17]} 44. Kf5 {[%emt 0:00:57]} d5 {[%emt 0:00:21]} 45. g5+ {[%emt 0:00:07]} fxg5 {[%emt 0:00:15]} 46. Kxe5 Re8+ {[%emt 0:00:04]} 47. Kxd5 {[%emt 0:00:25]} Rd8+ {[%emt 0:00:22]} 48. Ke5 {[%emt 0:00:24]} Re8+ {[%emt 0:00:10]} 49. Kf5 {[%emt 0:00:34]} Rf8+ {[%emt 0:00:03]} 50. Raf7 {[%emt 0:00:16]} Rh8 {[%emt 0:00:06]} 51. Rg6+ {[%emt 0:00:19]} Kh5 {[%emt 0:00:06]} 52. Rxg5+ {[%emt 0:00:02]} Kh4 {[%emt 0:00:08]} 53. b5 {[%emt 0:00:21]} Rh6 {[%emt 0:00:04]} 54. b6 {[%emt 0:00:10]} Kh3 55. b7 {[%emt 0:00:16]} Rh8 {[%emt 0:00:09]} 56. b8=Q {[%emt 0:00:20]} Rh4 {[%emt 0:00:07]} 57. Qg3# {[%emt 0:00:07]} 1-0

[Event "IIFL Wealth  4th Mumbai Junior U-13"]
[Site "Mumbai"]
[Date "2019.01.06"]
[Round "8"]
[White "Shravan Swaminathan"]
[Black "Mayank Chakraborty"]
[Result "1/2-1/2"]
[ECO "D02"]
[WhiteElo "1569"]
[BlackElo "1691"]
[Annotator "NA RC"]
[PlyCount "98"]
[EventDate "2018.12.30"]
[EventType "swiss"]
[EventCountry "IND"]
[SourceTitle "playchess.com"]
[Source "ChessBase"]
[SourceQuality "1"]
[TimeControl "40/5400+30:1800+30"]

1. d4 {[%emt 0:00:00]} d5 {[%emt 0:00:00]} 2. Bf4 {[%emt 0:00:00]} Nf6 {[%emt 0:00:00]} 3. Nf3 {[%emt 0:00:07]} c5 {[%emt 0:00:07]} 4. e3 {[%emt 0:00:12]} Nc6 {[%emt 0:00:09]} 5. Bb5 {[%emt 0:00:36]} Bg4 {[%emt 0:02:22]} 6. dxc5 {[%emt 0:28:45]} Qa5+ {[%emt 0:04:21]} 7. Nc3 {[%emt 0:00:09]} e6 8. Qd4 {[%emt 0:37:45]} Bxf3 {[%emt 0:07:38]} 9. gxf3 {[%emt 0:00:05]} a6 {[%emt 0:01:58]} 10. Bxc6+ {[%emt 0:00:10]} bxc6 {[%emt 0:00:14]} 11. b4 {[%emt 0:00:20]} Qa3 {[%emt 0:01:04]} 12. Ke2 {[%emt 0:19:11]} a5 {[%emt 0:01:25]} 13. Rhb1 {[%emt 0:00:58]} axb4 {[%emt 0:00:39]} 14. Rxb4 {[%emt 0:00:29]} Nd7 {[%emt 0:04:43]} 15. Na4 {[%emt 0:06:23]} Be7 {[%emt 0:04:35]} 16. Nb6 {[%emt 0:02:03]} Bf6 17. Qd1 Qxb4 {[%emt 0:05:25]} 18. Rb1 {[%emt 0:00:56]} Qa5 {[%emt 0:00:26]} 19. Nxa8 {[%emt 0:00:46]} Qxa8 {[%emt 0:00:11]} 20. Bd6 {[%emt 0:00:26]} Qa6+ {[%emt 0:00:37]} 21. Qd3 {[%emt 0:00:16]} Qxd3+ {[%emt 0:00:14]} 22. cxd3 {[%emt 0:00:47]} Be7 {[%emt 0:00:36]} 23. a4 {[%emt 0:00:04]} Bxd6 {[%emt 0:00:10]} 24. cxd6 {[%emt 0:00:02]} O-O {[%emt 0:00:16]} 25. Rb7 {[%emt 0:00:54]} Nc5 {[%emt 0:01:15]} 26. Rb4 {[%emt 0:00:53]} Rd8 {[%emt 0:00:53]} 27. d4 {[%emt 0:00:15]} Nd7 {[%emt 0:00:42]} 28. a5 {[%emt 0:00:22]} Kf8 29. a6 Ra8 {[%emt 0:01:52]} 30. Rb7 {[%emt 0:00:38]} Ke8 {[%emt 0:00:31]} 31. a7 {[%emt 0:00:12]} Kd8 {[%emt 0:00:40]} 32. Kd2 {[%emt 0:00:12]} f6 {[%emt 0:01:55]} 33. f4 {[%emt 0:00:55]} Kc8 {[%emt 0:00:44]} 34. Rc7+ {[%emt 0:00:05]} Kd8 {[%emt 0:00:07]} 35. Rb7 {[%emt 0:00:09]} Rc8 {[%emt 0:02:20]} 36. Ke2 {[%emt 0:00:22]} g5 {[%emt 0:00:22]} 37. fxg5 {[%emt 0:00:18]} fxg5 {[%emt 0:00:25]} 38. Kf3 {[%emt 0:00:11]} h5 39. Kg3 {[%emt 0:00:00]} Ra8 {[%emt 0:02:32]} 40. f4 gxf4+ {[%emt 0:00:00]} 41. Kxf4 {[%emt 0:02:16]} Kc8 {[%emt 0:00:20]} 42. Rc7+ {[%emt 0:00:52]} Kd8 {[%emt 0:00:06]} 43. Rb7 {[%emt 0:28:40]} Kc8 {[%emt 0:00:06]} 44. Rc7+ {[%emt 0:00:05]} Kd8 {[%emt 0:00:05]} 45. Rb7 {[%emt 0:02:38]} Kc8 {[%emt 0:00:08]} 46. Rc7+ {[%emt 0:00:04]} Kd8 {[%emt 0:00:09]} 47. Rb7 {[%emt 0:01:51]} Kc8 {[%emt 0:00:16]} 48. Rc7+ {[%emt 0:00:11]} Kd8 {[%emt 0:00:12]} 49. Kg5 Nb6 1/2-1/2

[Event "IIFL Wealth  4th Mumbai Junior U-13"]
[Site "Mumbai"]
[Date "2019.01.06"]
[Round "8"]
[White "Vedant Nitin vekhande"]
[Black "Parab Ram Vishal"]
[Result "1-0"]
[ECO "C65"]
[WhiteElo "1564"]
[BlackElo "1242"]
[Annotator "NA"]
[PlyCount "65"]
[EventDate "2018.12.30"]
[EventType "swiss"]
[EventCountry "IND"]
[SourceTitle "playchess.com"]
[Source "ChessBase"]
[SourceQuality "1"]
[TimeControl "40/5400+30:1800+30"]

1. e4 {[%emt 0:00:00]} e5 {[%emt 0:00:17]} 2. Nf3 Nc6 {[%emt 0:01:18]} 3. Bb5 {[%emt 0:00:27]} Bc5 {[%emt 0:01:27]} 4. O-O {[%emt 0:00:56]} Nf6 {[%emt 0:01:20]} 5. d3 {[%emt 0:02:31]} d6 {[%emt 0:01:46]} 6. c3 {[%emt 0:01:34]} O-O {[%emt 0:01:38]} 7. Re1 {[%emt 0:01:42]} Re8 {[%emt 0:03:05]} 8. Nbd2 {[%emt 0:02:28]} Bd7 {[%emt 0:01:42]} 9. Nf1 {[%emt 0:01:05]} a6 {[%emt 0:02:11]} 10. Ba4 {[%emt 0:00:24]} Bb6 {[%emt 0:03:39]} 11. Ng3 {[%emt 0:02:56]} Ne7 {[%emt 0:02:25]} 12. Bc2 {[%emt 0:02:20]} Ng6 {[%emt 0:01:51]} 13. h3 {[%emt 0:12:27]} h6 {[%emt 0:06:03]} 14. Nd2 {[%emt 0:11:23]} Nf4 {[%emt 0:03:52]} 15. Ndf1 {[%emt 0:00:17]} Bxh3 {[%emt 0:07:43]} 16. Bxf4 {[%emt 0:03:03]} exf4 {[%emt 0:01:11]} 17. gxh3 {[%emt 0:00:30]} fxg3 {[%emt 0:00:39]} 18. Nxg3 {[%emt 0:00:05]} Qd7 {[%emt 0:02:04]} 19. Kg2 {[%emt 0:02:55]} d5 {[%emt 0:05:44]} 20. e5 {[%emt 0:00:00]} Nh7 {[%emt 0:00:48]} 21. d4 {[%emt 0:00:35]} g6 {[%emt 0:03:11]} 22. f4 {[%emt 0:10:36]} Qe7 {[%emt 0:04:27]} 23. f5 {[%emt 0:05:47]} Qg5 {[%emt 0:02:34]} 24. Qg4 {[%emt 0:01:15]} Qxg4 {[%emt 0:01:56]} 25. hxg4 {[%emt 0:00:04]} Nf8 {[%emt 0:02:39]} 26. Rh1 {[%emt 0:00:39]} Kg7 {[%emt 0:01:32]} 27. f6+ {[%emt 0:01:00]} Kh7 {[%emt 0:01:52]} 28. g5 {[%emt 0:00:15]} h5 {[%emt 0:02:18]} 29. Rxh5+ {[%emt 0:00:16]} Kg8 {[%emt 0:00:54]} 30. Rh6 {[%emt 0:00:06]} Nh7 {[%emt 0:01:12]} 31. Rah1 {[%emt 0:00:33]} Nxf6 {[%emt 0:01:13]} 32. Rh8+ {[%emt 0:00:37]} Kg7 {[%emt 0:00:41]} 33. gxf6# {[%emt 0:00:14]} 1-0

[Event "IIFL Wealth  4th Mumbai Junior U-13"]
[Site "Mumbai"]
[Date "2019.01.06"]
[Round "8"]
[White "Bharadia Yash"]
[Black "Aditya Varun Gampa"]
[Result "1-0"]
[ECO "B44"]
[WhiteElo "1559"]
[BlackElo "1809"]
[Annotator "NA"]
[PlyCount "91"]
[EventDate "2018.12.30"]
[EventType "swiss"]
[EventCountry "IND"]
[SourceTitle "playchess.com"]
[Source "ChessBase"]
[SourceQuality "1"]
[TimeControl "40/5400+30:1800+30"]

1. e4 {[%emt 0:00:00]} c5 {[%emt 0:01:37]} 2. Nf3 {[%emt 0:00:00]} e6 {[%emt 0:00:15]} 3. d4 {[%emt 0:00:00]} cxd4 {[%emt 0:00:28]} 4. Nxd4 {[%emt 0:00:00]} Nc6 {[%emt 0:00:25]} 5. Nb5 {[%emt 0:03:10]} d6 {[%emt 0:01:15]} 6. c4 {[%emt 0:09:13]} a6 {[%emt 0:01:17]} 7. Nd4 {[%emt 0:01:43]} Nf6 {[%emt 0:02:11]} 8. Nc3 {[%emt 0:00:07]} Be7 {[%emt 0:02:05]} 9. Be2 {[%emt 0:00:17]} Qc7 {[%emt 0:03:17] B44: Sicilian: Taimanov: 5 Nb5} (9... O-O 10. O-O Qb6 11. Nb3 Qc7 12. Be3 b6 13. Rc1 Ne5 14. Nd2 Bb7 15. f4 Ned7 16. Bd3 Rac8 17. a3 Qb8 18. Qe2 {0-1 (53) Ehlvest,J (2532)-Kovalenko,I (2684) Puhajarve 2016}) 10. Be3 {[%emt 0:00:35]} Ne5 {[%emt 0:07:57]} 11. Rc1 {[%emt 0:01:11] LiveBook: 4 Games} b6 {[%emt 0:00:56]} 12. O-O {[%emt 0:00:46]} h5 $146 {[%emt 0:00:55]} ({Predecessor:} 12... O-O 13. a3 Bb7 14. f3 Rac8 15. Na4 Ned7 16. b4 {½-½ (25) Szajbely,Z (2187)-Gara,A (2322) Hungary 2015}) 13. h3 {[%emt 0:00:49]} Bb7 {[%emt 0:01:09]} 14. f4 {[%emt 0:01:07]} Ned7 {[%emt 0:03:02]} 15. Bf3 {[%emt 0:01:05]} Rc8 {[%emt 0:01:56]} 16. b3 {[%emt 0:01:16]} Qb8 {[%emt 0:01:48]} 17. Qc2 {[%emt 0:10:17]} h4 {[%emt 0:04:17]} 18. Bf2 {[%emt 0:16:51]} Nh5 {[%emt 0:09:25]} 19. Bxh5 {[%emt 0:00:55]} Rxh5 {[%emt 0:00:03]} 20. Qe2 {[%emt 0:04:52]} Nf6 {[%emt 0:04:27]} 21. Nf3 {[%emt 0:03:55]} Nd7 $2 {[%emt 0:02:14] [#]} ({Better is} 21... b5 $14) 22. f5 $1 {[%emt 0:08:10]} Rh8 {[%emt 0:03:54]} 23. fxe6 {[%emt 0:01:11]} fxe6 {[%emt 0:00:12]} 24. Nd4 {[%emt 0:05:35]} Nf8 $2 {[%emt 0:03:17]} (24... Rh6 25. Qg4 Ne5 26. Qxg7 Bf8) 25. Qg4 {[%emt 0:00:59]} e5 {[%emt 0:03:10]} 26. Nf5 {[%emt 0:01:55]} Qc7 {[%emt 0:06:41]} 27. Nxg7+ {[%emt 0:01:59]} Kd8 {[%emt 0:00:20]} 28. Bxh4 {[%emt 0:05:22]} Bxh4 {[%emt 0:06:17] [#]} 29. Rxf8+ $1 {[%emt 0:02:19] Remove Defender, Decoy} Ke7 {[%emt 0:00:43]} 30. Rxh8 {[%emt 0:01:41]} Rxh8 {[%emt 0:00:48]} 31. Nf5+ {[%emt 0:01:21]} Kd8 {[%emt 0:00:11]} 32. Nxh4 {[%emt 0:00:42]} Qc5+ {[%emt 0:00:07]} 33. Kh2 {[%emt 0:00:38]} Qe3 {[%emt 0:00:07]} 34. Rd1 {[%emt 0:01:07]} Qf4+ {[%emt 0:02:09]} 35. Qxf4 {[%emt 0:00:13]} exf4 {[%emt 0:00:09]} 36. Nf5 {[%emt 0:00:22]} Kc7 {[%emt 0:00:14]} 37. Rxd6 {[%emt 0:00:17]} Kb8 {[%emt 0:00:25]} 38. Rxb6 {[%emt 0:00:17]} Ka7 {[%emt 0:00:13]} 39. c5 {[%emt 0:00:22]} f3 {[%emt 0:00:17]} 40. gxf3 {[%emt 0:00:00]} a5 {[%emt 0:00:00]} 41. Nb5+ {[%emt 0:00:33]} Ka8 {[%emt 0:00:21]} 42. Nfd6 {[%emt 0:00:51]} Bc6 {[%emt 0:01:01]} 43. Rxc6 {[%emt 0:00:40]} a4 {[%emt 0:00:10]} 44. Rb6 {[%emt 0:00:19]} Rh7 {[%emt 0:00:19]} 45. Rc6 $11 {[%emt 0:01:03]} (45. Ra6+ {mates} Kb8 46. Rc6 Rh8 47. Rb6+ Ka8 48. Nc7+ Ka7 49. Rb7#) 45... Kb8 {[%emt 0:00:34]} 46. Rc8# {[%emt 0:00:08]} 1-0

[Event "IIFL Wealth  4th Mumbai Junior U-13"]
[Site "Mumbai"]
[Date "2019.01.06"]
[Round "8"]
[White "Adireddy Tarun"]
[Black "Garv Rai"]
[Result "1/2-1/2"]
[ECO "E40"]
[WhiteElo "1553"]
[BlackElo "1772"]
[Annotator "NA RC"]
[PlyCount "74"]
[EventDate "2018.12.30"]
[EventType "swiss"]
[EventCountry "IND"]
[SourceTitle "playchess.com"]
[Source "ChessBase"]
[SourceQuality "1"]
[TimeControl "40/5400+30:1800+30"]

1. d4 {[%emt 0:00:37]} Nf6 {[%emt 0:00:00]} 2. c4 {[%emt 0:00:07]} e6 {[%emt 0:00:00]} 3. Nc3 {[%emt 0:00:06]} Bb4 {[%emt 0:00:00]} 4. e3 {[%emt 0:00:09]} Bxc3+ {[%emt 0:00:46]} 5. bxc3 {[%emt 0:00:21]} d6 {[%emt 0:00:18]} 6. Nf3 {[%emt 0:04:56]} Nbd7 {[%emt 0:00:10]} 7. Bd3 {[%emt 0:00:19]} O-O {[%emt 0:00:16]} 8. O-O {[%emt 0:04:39]} e5 {[%emt 0:00:12]} 9. e4 {[%emt 0:00:11]} c5 {[%emt 0:00:15]} 10. d5 {[%emt 0:00:47]} h6 {[%emt 0:03:54]} 11. h3 {[%emt 0:04:35]} Nh7 {[%emt 0:12:45]} 12. Kh2 {[%emt 0:08:22]} Qe7 {[%emt 0:02:28]} 13. g4 {[%emt 0:18:13]} Ng5 {[%emt 0:05:54]} 14. Bxg5 {[%emt 0:04:04]} hxg5 {[%emt 0:01:19]} 15. Qd2 {[%emt 0:00:07]} f6 {[%emt 0:00:31]} 16. h4 {[%emt 0:01:31]} Nb6 {[%emt 0:09:12]} 17. Rg1 {[%emt 0:08:42]} gxh4 {[%emt 0:00:44]} 18. Nxh4 {[%emt 0:00:41]} g5 {[%emt 0:00:11]} 19. Nf5 {[%emt 0:00:32]} Bxf5 {[%emt 0:00:43]} 20. gxf5 {[%emt 0:00:08]} Kg7 {[%emt 0:00:53]} 21. Kg3 {[%emt 0:02:50]} Rh8 {[%emt 0:00:32]} 22. Rh1 {[%emt 0:00:11]} Rxh1 {[%emt 0:02:59]} 23. Rxh1 {[%emt 0:00:02]} Rh8 {[%emt 0:00:21]} 24. Qd1 {[%emt 0:03:57]} Rxh1 {[%emt 0:03:20]} 25. Qxh1 {[%emt 0:00:02]} Qe8 {[%emt 0:00:20]} 26. Qd1 {[%emt 0:10:41]} Qh8 {[%emt 0:03:32]} 27. Qb3 {[%emt 0:01:46]} Qh4+ {[%emt 0:01:27]} 28. Kf3 {[%emt 0:00:37]} Qf4+ {[%emt 0:05:26]} 29. Ke2 {[%emt 0:01:07]} g4 {[%emt 0:01:49]} 30. Ke1 {[%emt 0:00:43]} Qf3 {[%emt 0:04:35]} 31. Qc2 {[%emt 0:01:47]} Qh1+ {[%emt 0:00:46]} 32. Bf1 {[%emt 0:01:12]} Kh6 {[%emt 0:13:37]} 33. a4 {[%emt 0:11:28]} Kg5 {[%emt 0:05:53]} 34. Qb1 {[%emt 0:04:32]} Qf3 {[%emt 0:11:18]} 35. Qc2 {[%emt 0:01:13]} Qh1 {[%emt 0:04:04]} 36. Qb1 {[%emt 0:00:16]} Qf3 {[%emt 0:02:40]} 37. Qc2 {[%emt 0:00:06]} Qh1 {[%emt 0:00:03]} 1/2-1/2